[Event "Slovakian-ch Youth 2022"]
[Site "Lubovna"]
[Date "2022.05.21"]
[Round "1.3"]
[White "Hudak, Jan"]
[Black "Vida, Gergo"]
[Result "1-0"]
[ECO "B27"]
[WhiteElo "1688"]
[BlackElo "1821"]
[Annotator "NA COMBH"]
[PlyCount "37"]
[EventDate "2022.05.22"]
[EventCountry "SVK"]
[SourceTitle "playchess.com"]
[Source "ChessBase"]
[SourceQuality "1"]
[TimeControl "40/5400+30:1800+30"]

1. e4 {[%emt 0:00:05]} c5 {[%emt 0:00:09]} 2. Nf3 {[%emt 0:00:07]} g6 {[%emt 0:00:23]} 3. c3 {[%emt 0:00:27]} Bg7 {[%emt 0:00:54]} 4. d4 {[%emt 0:01:15]} cxd4 {[%emt 0:00:45]} 5. cxd4 {[%emt 0:00:06]} d6 {[%emt 0:00:44]} 6. Nc3 {[%emt 0:00:13]} Nc6 {[%emt 0:01:01]} 7. Bb5 {[%emt 0:00:23]} a6 {[%emt 0:01:31]} 8. Ba4 {[%emt 0:03:45]} b5 {[%emt 0:03:09]} 9. Bb3 {[%emt 0:02:04]} Bg4 {[%emt 0:01:22]} 10. Bxf7+ {[%emt 0:01:21]} Kxf7 {[%emt 0:02:35]} 11. Ng5+ {[%emt 0:00:11]} Ke8 {[%emt 0:01:08]} 12. Qxg4 {[%emt 0:00:14]} Nxd4 {[%emt 0:01:36]} 13. O-O {[%emt 0:04:01]} Nf6 {[%emt 0:09:15]} 14. Qd1 {[%emt 0:01:56]} e5 {[%emt 0:08:49]} 15. Be3 {[%emt 0:01:37]} Nd7 {[%emt 0:01:26]} 16. Nd5 {[%emt 0:05:53]} Bh6 {[%emt 0:04:43]} 17. Ne6 {[%emt 0:09:03]} Nxe6 {[%emt 0:01:50]} 18. Bxh6 {[%emt 0:00:12]} g5 {[%emt 0:00:41]} 19. Qh5# {[%emt 0:00:25]} 1-0

[Event "Slovakian-ch Youth 2022"]
[Site "Lubovna"]
[Date "2022.05.21"]
[Round "1.4"]
[White "Ammer, Erik"]
[Black "Oruzinsky, Juraj"]
[Result "0-1"]
[ECO "C50"]
[WhiteElo "1320"]
[BlackElo "1656"]
[Annotator "NA COMBH"]
[PlyCount "84"]
[EventDate "2022.05.22"]
[EventCountry "SVK"]
[SourceTitle "playchess.com"]
[Source "ChessBase"]
[SourceQuality "1"]
[TimeControl "40/5400+30:1800+30"]

1. e4 {[%emt 0:00:05]} e5 {[%emt 0:00:11]} 2. Nf3 {[%emt 0:00:12]} Nc6 {[%emt 0:00:08]} 3. Bc4 {[%emt 0:00:09]} Bc5 {[%emt 0:00:14]} 4. d3 {[%emt 0:00:41]} d6 {[%emt 0:01:23]} 5. h3 {[%emt 0:02:23]} h6 {[%emt 0:01:20]} 6. Nc3 {[%emt 0:01:09]} Nf6 {[%emt 0:01:29]} 7. Be3 {[%emt 0:00:42]} Bb6 {[%emt 0:00:59]} 8. Qd2 {[%emt 0:00:37]} Be6 {[%emt 0:02:04]} 9. Bb3 {[%emt 0:01:52]} Ba5 {[%emt 0:05:56]} 10. Ba4 {[%emt 0:01:17]} O-O {[%emt 0:06:58]} 11. a3 {[%emt 0:02:19]} Qe7 {[%emt 0:08:32]} 12. Bxc6 {[%emt 0:02:20]} bxc6 {[%emt 0:00:33]} 13. b4 {[%emt 0:00:32]} Bb6 {[%emt 0:00:37]} 14. O-O {[%emt 0:00:36]} Rfd8 {[%emt 0:01:58]} 15. Rad1 {[%emt 0:04:34]} a5 {[%emt 0:06:07]} 16. Bxb6 {[%emt 0:00:56]} cxb6 {[%emt 0:03:03]} 17. d4 Bc4 18. Rfe1 {[%emt 0:00:48]} axb4 {[%emt 0:02:14]} 19. axb4 {[%emt 0:00:09]} b5 {[%emt 0:01:29]} 20. Qe3 {[%emt 0:00:59]} Nh5 {[%emt 0:03:04]} 21. Rd2 {[%emt 0:02:47]} Nf4 {[%emt 0:04:40]} 22. Red1 {[%emt 0:00:58]} Ng6 {[%emt 0:01:06]} 23. Ne2 {[%emt 0:06:15]} Re8 {[%emt 0:10:36]} 24. dxe5 {[%emt 0:04:35]} dxe5 {[%emt 0:01:59]} 25. c3 {[%emt 0:01:23]} Bb3 {[%emt 0:07:07]} 26. Rd7 {[%emt 0:01:22]} Bxd1 {[%emt 0:03:04]} 27. Rxe7 Rxe7 28. Ng3 {[%emt 0:01:33]} Ra1 {[%emt 0:02:44]} 29. Kh2 {[%emt 0:00:50]} Rd7 {[%emt 0:00:30]} 30. h4 Bxf3 {[%emt 0:01:24]} 31. Qxf3 {[%emt 0:03:56]} Rd2 32. h5 {[%emt 0:03:29]} Nf4 {[%emt 0:02:34]} 33. Qg4 {[%emt 0:00:23]} Ne6 34. Nf5 {[%emt 0:05:56]} Kh7 {[%emt 0:10:40]} 35. Ne7 Rxf2 36. Kg3 {[%emt 0:03:16]} Raa2 {[%emt 0:02:40]} 37. Kh3 Nf4+ {[%emt 0:00:52]} 38. Kh4 {[%emt 0:01:19]} Nxg2+ {[%emt 0:01:02]} 39. Kg3 {[%emt 0:00:29]} Ne3 40. Qc8 {[%emt 0:00:26]} Nf1+ {[%emt 0:02:27]} 41. Kg4 {[%emt 0:31:05]} Rf4+ 42. Kh3 {[%emt 0:02:39]} Rh2# 0-1

[Event "Slovakian-ch Youth 2022"]
[Site "Lubovna"]
[Date "2022.05.22"]
[Round "1.5"]
[White "Kostelansky, Karol"]
[Black "Stevik, Patrik"]
[Result "0-1"]
[ECO "B06"]
[WhiteElo "1821"]
[BlackElo "2249"]
[Annotator "TA"]
[PlyCount "102"]
[EventDate "2022.05.22"]
[EventCountry "SVK"]
[SourceTitle "playchess.com"]
[Source "ChessBase"]
[SourceQuality "1"]
[TimeControl "40/5400+30:1800+30"]

{[%evp 9,102,26,27,25,27,20,38,33,47,21,43,0,0,-16,0,-81,-70,-89,-78,-70,-13,-114,-85,-80,-51,-257,-159,-146,-157,-116,-137,-325,-332,-291,-209,-195,-212,-343,-335,-585,-357,-351,-355,-456,-442,-407,-447,-585,-483,-970,-375,-356,-379,-377,-377,-331,0,0,0,0,0,-6,0,-114,-83,-89,-81,-71,140,0,30,30,30,-308,-269,-361,-301,-538,-517,-581,-558,-610,-599,-580,-558,-702,-429,-712,-709,-1028,-684,-564,-618,-1017,-751]} 1. e4 {[%emt 0:00:18] Kaspi,A} g6 {[%emt 0:00:23]} 2. d4 {[%emt 0:00:29]} Bg7 {[%emt 0:00:23]} 3. Nc3 {[%emt 0:00:31]} d6 {[%emt 0:00:09]} 4. h4 {[%emt 0:00:31]} h5 {[%emt 0:01:13]} 5. Be2 {[%emt 0:01:43]} a6 {[%emt 0:01:29]} 6. Nf3 {[%emt 0:02:40] B06: Modern Defence.} b5 {[%emt 0:02:59][%cal Bb7b5,Bb5b4][%mdl 32]} 7. Be3 {[%emt 0:07:24]} Bb7 {[%emt 0:01:11]} 8. Ng5 {[%emt 0:01:37] White is slightly better.} Nd7 {[%emt 0:01:11]} 9. f4 {[%emt 0:12:37] Strongly threatening f5.} e6 {[%emt 0:14:06] [#] Prevents f5.} 10. Qd3 $146 {[%emt 0:11:28]} (10. f5 $14 exf5 11. exf5) ({Predecessor:} 10. f5 exf5 11. exf5 Qe7 12. Qd3 gxf5 13. Bf3 Bxf3 14. gxf3 Nb6 15. O-O-O Qd7 16. d5 {0-1 (38) Slobodjan,R (2536)-Arencibia Rodriguez,W (2520) Havana 1999 CBM 071 [Kaspi,A]}) 10... Nh6 $11 {[%emt 0:04:18]} 11. O-O-O {[%emt 0:04:24]} b4 {[%emt 0:06:44]} 12. Nb1 {[%emt 0:07:33]} (12. d5 $11) 12... a5 $1 $17 {[%emt 0:02:20]} 13. Bf3 {[%emt 0:02:30][%cal Of4f5]} (13. Qb5 $2 Ba6 14. Qxa6 Rxa6 15. Bxa6 Qa8 $19) 13... Ba6 {[%emt 0:03:46]} (13... O-O {is interesting.} 14. Qb5 Nb6 15. Nd2 Qd7) 14. Qd2 {[%emt 0:00:57][%cal Of4f5]} Rb8 {[%emt 0:03:41]} (14... Nb6 $15) 15. Rdg1 {[%emt 0:07:10]} (15. d5 $1 $11 {remains equal.} e5 16. f5 gxf5 17. Bxh5) 15... Nb6 {[%emt 0:11:29]} 16. b3 {[%emt 0:04:36] Inhibits Nc4.} d5 {[%emt 0:04:22]} (16... Qd7 {looks sharper.} 17. a3 Ng4 18. axb4 axb4 19. Re1 Nxe3 20. Qxe3 e5) 17. g4 $2 {[%emt 0:08:46]} ({White should try} 17. e5 $1 $15) 17... hxg4 {[%emt 0:05:10]} ({And not} 17... Nxg4 18. Bxg4 hxg4 19. e5 $15) 18. Bxg4 {[%emt 0:02:06]} Nxg4 {[%emt 0:00:52]} 19. Rxg4 {[%emt 0:00:10][%cal Of4f5]} dxe4 {[%emt 0:00:09]} 20. Nxe6 $2 {[%emt 0:07:02]} (20. Rhg1 $17 {might work better.}) 20... fxe6 $19 {[%emt 0:01:00]} 21. Rxg6 {[%emt 0:00:19]} Qe7 {[%emt 0:01:19] Threatens to win with ...Bf6.} 22. Qg2 {[%emt 0:01:30]} Bf6 {[%emt 0:00:28] aiming for ...Nd5.} 23. h5 {[%emt 0:04:15]} (23. Nd2 $142 Bb7 24. Nxe4 Bxe4 25. Qxe4) 23... Nd5 {[%emt 0:01:01]} 24. Qh3 {[%emt 0:03:43]} (24. Qxe4 Bb7 25. Rhg1) 24... Rd8 {[%emt 0:00:44] White must now prevent ...Be2.} 25. Nd2 {[%emt 0:00:42]} Nc3 {[%emt 0:00:53][%csl LRa2,LRd4]} 26. Kb2 {[%emt 0:01:24]} Be2 {[%emt 0:01:01]} 27. h6 {[%emt 0:00:54]} Qf7 {[%emt 0:04:22]} 28. Rg2 {[%emt 0:04:55]} a4 {[%emt 0:04:06]} 29. bxa4 {[%emt 0:01:32]} (29. Nxe4 $142 a3+ 30. Ka1 Nxe4 31. Rxe2) 29... Nxa4+ $2 {[%emt 0:00:25]} (29... e5 30. Nb3 exd4 31. Bxd4 Bxd4 32. Rxe2 Nxe2+ 33. Nxd4 Rxd4) 30. Kc1 {[%emt 0:00:32]} Nc3 {[%emt 0:00:19]} ({Stronger than} 30... Bxd4 31. Bxd4 Rxd4 32. Rxe2 $11) 31. Nxe4 {[%emt 0:00:21]} Nxe4 {[%emt 0:00:41]} 32. Rxe2 {[%emt 0:00:03]} Bxd4 $2 {[%emt 0:01:56]} (32... Nc3 $19 33. Ree1 Nxa2+ 34. Kb2 Nc3) 33. Bxd4 $11 {[%emt 0:00:31]} Rxd4 {[%emt 0:00:07]} 34. Qf3 $1 {[%emt 0:00:40]} Nc3 {[%emt 0:02:31]} 35. Qc6+ {[%emt 0:00:31]} Kd8 {[%emt 0:05:55]} 36. Qa8+ {[%emt 0:01:29] [#]} (36. Rxe6 $11 Qd7 37. Qa8+ Qc8 38. Qc6) 36... Ke7 $1 $17 {[%emt 0:02:30]} 37. Qxh8 {[%emt 0:00:02]} Nxe2+ {[%emt 0:00:13]} 38. Kb2 {[%emt 0:00:12] Qe5 is the strong threat.} Rxf4 $2 {[%emt 0:00:20]} (38... Qxf4 $2 39. Qg7+ Qf7 40. Qxf7+ Kxf7 41. h7 $18) (38... Rd8 $17 {keeps the pressure on.} 39. Qe5 Qf6) 39. h7 {[%emt 0:00:32]} (39. Qe5 $16 {Threatening mate with h7.} Qf5 40. Qxf5 (40. Qxc7+ Ke8 $16) 40... Rxf5 41. h7) 39... Rf5 {[%emt 0:04:59]} 40. Rd1 {[%emt 0:01:10][%csl Gd1][%cal Rh8d8]} Qf8 {[%emt 0:00:17] [#] Against Qd8+} 41. Qxf8+ {[%emt 0:31:11][%mdl 8192]} (41. Rd8 $1 $11 Kxd8 42. Qg8) 41... Rxf8 $11 {[%emt 0:39:58][%mdl 4096] Endgame KRN-KR} 42. Re1 {[%emt 0:00:30]} Nc3 {[%emt 0:00:30]} 43. Rg1 $2 {[%emt 0:00:30]} (43. a3) 43... Rh8 $19 {[%emt 0:00:30] Black is clearly winning.} 44. Rg7+ {[%emt 0:00:30]} Kd6 {[%emt 0:00:30]} 45. Kb3 {[%emt 0:00:30]} Nd5 {[%emt 0:00:30]} 46. Kc4 {[%emt 0:00:30]} c5 {[%emt 0:00:30]} 47. Rb7 {[%emt 0:00:30]} Ne3+ {[%emt 0:00:30]} 48. Kd3 {[%emt 0:00:30]} (48. Kb3 $142) 48... Ng4 {[%emt 0:00:30]} 49. Ke4 {[%emt 0:00:30]} Ne5 {[%emt 0:00:30]} 50. Rg7 {[%emt 0:00:30]} Nd7 {[%emt 0:00:30]} 51. Rf7 {[%emt 0:00:30]} Nf8 {[%emt 0:00:30] Weighted Error Value: White=0.81/Black=0.56} 0-1

[Event "Slovakian-ch Youth 2022"]
[Site "Lubovna"]
[Date "2022.05.21"]
[Round "1.5"]
[White "Durana, Jonas"]
[Black "Hasala, Richard"]
[Result "1-0"]
[ECO "B03"]
[WhiteElo "1644"]
[BlackElo "1318"]
[Annotator "NA COMBH"]
[PlyCount "79"]
[EventDate "2022.05.22"]
[EventCountry "SVK"]
[SourceTitle "playchess.com"]
[Source "ChessBase"]
[SourceQuality "1"]
[TimeControl "40/5400+30:1800+30"]

1. e4 {[%emt 0:00:32]} Nf6 {[%emt 0:00:07]} 2. e5 {[%emt 0:00:09]} Nd5 {[%emt 0:00:04]} 3. d4 {[%emt 0:00:06]} d6 {[%emt 0:00:03]} 4. c4 {[%emt 0:01:01]} Nb6 {[%emt 0:00:05]} 5. f4 {[%emt 0:00:21]} Bf5 {[%emt 0:00:47]} 6. Nf3 {[%emt 0:00:16]} e6 {[%emt 0:00:29]} 7. Nc3 {[%emt 0:00:32]} dxe5 {[%emt 0:01:13]} 8. fxe5 Bb4 {[%emt 0:02:23]} 9. Be2 {[%emt 0:04:15]} Bxc3+ {[%emt 0:01:04]} 10. bxc3 {[%emt 0:00:03]} Nc6 {[%emt 0:01:10]} 11. O-O {[%emt 0:00:34]} O-O {[%emt 0:00:06]} 12. Bg5 {[%emt 0:05:36]} Qd7 {[%emt 0:01:27]} 13. a4 {[%emt 0:11:24]} Ne7 {[%emt 0:09:52]} 14. Qb3 {[%emt 0:09:15]} Rab8 {[%emt 0:01:12]} 15. a5 {[%emt 0:02:15]} Nbc8 {[%emt 0:00:32]} 16. Rfd1 {[%emt 0:05:12]} h6 {[%emt 0:05:18]} 17. Be3 {[%emt 0:03:20]} a6 {[%emt 0:02:44]} 18. d5 {[%emt 0:05:50]} Be4 {[%emt 0:07:22]} 19. Bc5 {[%emt 0:10:22]} c6 {[%emt 0:06:12]} 20. dxc6 {[%emt 0:03:52]} Qxc6 {[%emt 0:00:37]} 21. Qb4 {[%emt 0:01:29]} Qe8 {[%emt 0:07:40]} 22. Qa3 {[%emt 0:04:46]} f6 {[%emt 0:01:48]} 23. Bd6 Nxd6 {[%emt 0:02:38]} 24. exd6 {[%emt 0:09:29]} Nc6 {[%emt 0:00:30]} 25. c5 {[%emt 0:03:06]} Qg6 {[%emt 0:01:29]} 26. g3 {[%emt 0:02:34]} f5 {[%emt 0:01:22]} 27. Nh4 {[%emt 0:01:27]} Qg5 {[%emt 0:00:25]} 28. Qc1 {[%emt 0:01:08]} Qxc1 {[%emt 0:00:39]} 29. Rdxc1 {[%emt 0:00:25]} g5 {[%emt 0:00:13]} 30. Nf3 {[%emt 0:00:11]} f4 {[%emt 0:02:51]} 31. Nd4 {[%emt 0:00:54]} e5 {[%emt 0:02:58]} 32. Bc4+ {[%emt 0:00:22]} Kh7 {[%emt 0:00:39]} 33. Nxc6 {[%emt 0:02:03]} Bxc6 {[%emt 0:00:06]} 34. g4 {[%emt 0:01:51]} Bd7 {[%emt 0:01:48]} 35. Re1 {[%emt 0:00:56]} Rbe8 {[%emt 0:00:15]} 36. Bd5 {[%emt 0:01:05]} Rc8 {[%emt 0:05:47]} 37. Rxe5 {[%emt 0:00:14]} Rxc5 {[%emt 0:00:17]} 38. Be4+ {[%emt 0:00:11]} Bf5 {[%emt 0:01:49]} 39. Bxf5+ {[%emt 0:00:06]} Rxf5 {[%emt 0:00:18]} 40. Rxf5 {[%emt 0:00:06]} 1-0

[Event "Slovakian-ch Youth 2022"]
[Site "Lubovna"]
[Date "2022.05.22"]
[Round "1.6"]
[White "Brnusak, Tomas"]
[Black "Kuna, Patrik"]
[Result "1-0"]
[ECO "B38"]
[WhiteElo "2212"]
[BlackElo "1811"]
[Annotator "TA"]
[PlyCount "64"]
[EventDate "2022.05.22"]
[EventCountry "SVK"]
[SourceTitle "playchess.com"]
[Source "ChessBase"]
[SourceQuality "1"]
[TimeControl "40/5400+30:1800+30"]

{[%evp 21,64,32,39,39,54,51,53,28,55,48,87,102,153,169,285,129,134,85,125,131,155,137,175,174,190,135,285,250,288,185,673,669,657,646,728,727,664,684,820,622,610,610,579,577,29993]} 1. e4 {[%emt 0:00:10]} c5 {[%emt 0:00:18]} 2. Nf3 {[%emt 0:00:07]} Nc6 {[%emt 0:00:04]} 3. d4 {[%emt 0:00:05]} cxd4 {[%emt 0:00:04]} 4. Nxd4 {[%emt 0:00:05]} g6 {[%emt 0:00:18]} 5. c4 {[%emt 0:00:05]} Bg7 {[%emt 0:00:06]} 6. Be3 {[%emt 0:00:04]} Nf6 {[%emt 0:00:45]} 7. Nc3 {[%emt 0:00:06]} O-O {[%emt 0:00:06]} 8. Be2 {[%emt 0:00:15]} d6 {[%emt 0:01:37]} 9. O-O {[%emt 0:00:36]} Bd7 {[%emt 0:00:04]} 10. h3 {[%emt 0:00:05]} Nxd4 {[%emt 0:01:17]} 11. Bxd4 {[%emt 0:00:05]} Bc6 {[%emt 0:00:33]} 12. Qc2 {[%emt 0:00:09] B38: Sicilian: Maroczy Bind with 5...Bg7 and 7...0-0.} Nd7 {[%emt 0:17:26]} 13. Bxg7 {[%emt 0:01:10]} Kxg7 {[%emt 0:00:07]} 14. Rad1 {[%emt 0:00:23] White is slightly better.} Qc7 {[%emt 0:01:44]} 15. b4 {[%emt 0:03:37] [#]} Nb6 $146 {[%emt 0:12:09]} ({Predecessor:} 15... Nf6 16. Rd2 Rfc8 17. Rc1 b6 18. Bg4 Nxg4 19. hxg4 Qd7 20. f3 a5 21. b5 Bb7 22. Na4 Qc7 23. Qc3+ Kg8 24. Qe3 Rcb8 25. Nxb6 Ra7 26. Nd7 {1-0 (26) Gschnitzer,A (2405)-Herbrig,A (2295) Wuerzburg 2019}) 16. e5 {[%emt 0:13:15]} Rfd8 {[%emt 0:30:30]} (16... Rae8 $142) 17. exd6 $16 {[%emt 0:01:15] White is more active.} Rxd6 {[%emt 0:00:55]} (17... exd6 {was worth a try.} 18. b5 Be8) 18. Rxd6 {[%emt 0:04:49]} (18. c5 $18 {and the rest is easy.} Rxd1 19. Rxd1) 18... exd6 {[%emt 0:00:08]} 19. Rd1 {[%emt 0:02:38]} (19. a4 $142) 19... Qe7 {[%emt 0:07:53]} 20. Qd2 {[%emt 0:21:44]} Qe5 {[%emt 0:07:06]} 21. f4 {[%emt 0:03:46]} Qe6 {[%emt 0:02:12]} 22. b5 $36 {[%emt 0:04:42][%mdl 2048] Keeping Black busy.} Bd7 {[%emt 0:00:35]} 23. Qd4+ {[%emt 0:00:07]} (23. a4 $18) 23... f6 {[%emt 0:05:27] This costs Black the game.} (23... Qf6 $16) 24. Bg4 {[%emt 0:05:00]} Qe7 {[%emt 0:01:46]} 25. Bxd7 {[%emt 0:00:46]} Qxd7 {[%emt 0:02:06] [#]} (25... Nxd7 26. Rd2 (26. Qxd6 Qxd6 27. Rxd6 Nc5 $16) 26... Qe1+ 27. Kh2 Re8) 26. c5 $18 {[%emt 0:01:39][%cal Bc4c5,Bc5d6,Bd6d7][%mdl 32] White is clearly winning.} Nc8 {[%emt 0:03:10]} 27. Ne4 {[%emt 0:03:15]} Qe6 {[%emt 0:00:55]} 28. cxd6 {[%emt 0:00:13]} Nb6 {[%emt 0:00:45]} 29. Nc5 {[%emt 0:01:13][%csl LRb7,LRe6]} Qf7 {[%emt 0:01:15]} 30. Re1 {[%emt 0:02:29] [#] aiming for Re7.} Re8 {[%emt 0:00:58] Prevents Re7.} 31. Rxe8 {[%emt 0:00:06]} Qxe8 {[%emt 0:00:04]} 32. d7 {[%emt 0:00:09]} Qd8 {[%emt 0:00:25] Weighted Error Value: White=0.31/Black=0.87} 1-0

[Event "Slovakian-ch Youth 2022"]
[Site "Lubovna"]
[Date "2022.05.21"]
[Round "1.6"]
[White "Tokarcik, Jan"]
[Black "Vargosko, Juraj"]
[Result "1-0"]
[ECO "B08"]
[WhiteElo "1313"]
[BlackElo "1640"]
[Annotator "NA COMBH"]
[PlyCount "75"]
[EventDate "2022.05.22"]
[EventCountry "SVK"]
[SourceTitle "playchess.com"]
[Source "ChessBase"]
[SourceQuality "1"]
[TimeControl "40/5400+30:1800+30"]

1. e4 {[%emt 0:00:03]} d6 {[%emt 0:00:09]} 2. d4 {[%emt 0:00:22]} Nf6 {[%emt 0:00:07]} 3. Nc3 {[%emt 0:00:34]} g6 {[%emt 0:01:03]} 4. Nf3 {[%emt 0:00:57]} Bg7 {[%emt 0:00:09]} 5. Bd3 {[%emt 0:01:08]} O-O {[%emt 0:01:05]} 6. O-O {[%emt 0:01:19]} Bg4 {[%emt 0:00:35]} 7. h3 {[%emt 0:01:37]} Bxf3 {[%emt 0:00:25]} 8. Qxf3 {[%emt 0:00:54]} Nc6 {[%emt 0:01:14]} 9. Be3 {[%emt 0:02:32]} Nd7 {[%emt 0:05:13]} 10. Ne2 {[%emt 0:07:23]} e5 {[%emt 0:00:53]} 11. d5 {[%emt 0:03:30]} Nd4 {[%emt 0:20:42]} 12. Qg3 {[%emt 0:15:45]} f5 13. Bxd4 f4 {[%emt 0:23:16]} 14. Qg4 {[%emt 0:39:14]} exd4 {[%emt 0:09:24]} 15. Nxf4 {[%emt 0:06:05]} Ne5 {[%emt 0:02:50]} 16. Qg3 {[%emt 0:03:19]} Qf6 {[%emt 0:06:14]} 17. Ne6 {[%emt 0:03:16]} Rf7 {[%emt 0:00:24]} 18. f4 {[%emt 0:04:37]} Nd7 {[%emt 0:00:41]} 19. Rae1 {[%emt 0:01:48]} c6 {[%emt 0:00:48]} 20. e5 {[%emt 0:01:44]} dxe5 {[%emt 0:00:51]} 21. fxe5 {[%emt 0:01:04]} Qe7 {[%emt 0:00:05]} 22. Nxg7 {[%emt 0:00:38]} Rxf1+ {[%emt 0:00:08]} 23. Rxf1 {[%emt 0:01:12]} Kxg7 {[%emt 0:00:12]} 24. e6 {[%emt 0:00:19]} Nf6 {[%emt 0:00:18]} 25. d6 {[%emt 0:02:03]} Qxe6 {[%emt 0:01:28]} 26. Re1 {[%emt 0:00:22]} Nh5 {[%emt 0:00:23]} 27. Rxe6 Nxg3 {[%emt 0:00:07]} 28. Re7+ {[%emt 0:01:10]} Kf6 {[%emt 0:00:13]} 29. Bc4 {[%emt 0:01:06]} b5 {[%emt 0:00:38]} 30. Bb3 {[%emt 0:00:45]} c5 {[%emt 0:01:01]} 31. Re6+ {[%emt 0:00:37]} Kf5 {[%emt 0:00:55]} 32. d7 {[%emt 0:00:33]} Rd8 {[%emt 0:00:07]} 33. Re8 {[%emt 0:00:24]} c4 {[%emt 0:00:51]} 34. Rxd8 {[%emt 0:00:12]} Ke6 {[%emt 0:00:03]} 35. Rb8 {[%emt 0:00:30]} Kxd7 {[%emt 0:00:09]} 36. Rxb5 {[%emt 0:00:08]} cxb3 {[%emt 0:00:29]} 37. Rxb3 {[%emt 0:00:07]} Ne4 {[%emt 0:01:46]} 38. Rd3 {[%emt 0:00:15]} 1-0

[Event "Slovakian-ch Youth 2022"]
[Site "Lubovna"]
[Date "2022.05.21"]
[Round "1.7"]
[White "Benci, Jozef"]
[Black "Kluska, Lukas"]
[Result "1-0"]
[ECO "A06"]
[WhiteElo "1873"]
[BlackElo "1215"]
[Annotator "NA COMBH"]
[PlyCount "47"]
[EventDate "2022.05.22"]
[EventCountry "SVK"]
[SourceTitle "playchess.com"]
[Source "ChessBase"]
[SourceQuality "1"]
[TimeControl "40/5400+30:1800+30"]

1. Nf3 {[%emt 0:00:06]} d5 {[%emt 0:00:11]} 2. g3 {[%emt 0:00:09]} Nf6 {[%emt 0:00:08]} 3. Bg2 {[%emt 0:00:14]} Bf5 {[%emt 0:00:40]} 4. d3 {[%emt 0:00:22]} e6 {[%emt 0:00:23]} 5. O-O {[%emt 0:00:20]} Be7 {[%emt 0:00:13]} 6. Nbd2 {[%emt 0:01:13]} O-O {[%emt 0:02:15]} 7. c4 {[%emt 0:01:56]} d4 {[%emt 0:05:12]} 8. b3 {[%emt 0:17:10]} c5 {[%emt 0:03:07]} 9. Bb2 {[%emt 0:06:18]} Nc6 {[%emt 0:02:10]} 10. Nh4 {[%emt 0:01:51]} Qc7 {[%emt 0:03:24]} 11. a3 {[%emt 0:09:10]} Ng4 {[%emt 0:07:15]} 12. Ndf3 {[%emt 0:06:11]} Nce5 {[%emt 0:04:57]} 13. Nxe5 {[%emt 0:04:59]} Qxe5 {[%emt 0:03:07]} 14. e4 {[%emt 0:11:01]} Bxh4 {[%emt 0:03:58]} 15. exf5 {[%emt 0:02:22]} exf5 {[%emt 0:00:22]} 16. h3 {[%emt 0:03:26]} Nxf2 {[%emt 0:04:15]} 17. Rxf2 {[%emt 0:01:44]} Bxg3 {[%emt 0:00:12]} 18. Re2 {[%emt 0:09:36]} Bh2+ {[%emt 0:00:40]} 19. Kh1 {[%emt 0:00:25]} Qg3 {[%emt 0:00:26]} 20. Qd2 {[%emt 0:06:53]} Rfe8 {[%emt 0:00:41]} 21. Rae1 {[%emt 0:01:23]} Rxe2 {[%emt 0:00:38]} 22. Qxe2 {[%emt 0:00:12]} h6 {[%emt 0:00:17]} 23. Rf1 {[%emt 0:01:45]} f4 {[%emt 0:00:49]} 24. Rf3 1-0